Cogmind - Beta 17 @@@ ROGUE MODE // 2026.06.25 @ 21:53:05 Player: star Result: Destroyed by Piercing Trap Performance ------------- Evolutions (0) 0 Regions Visited (2) 400 Robots Destroyed (10) 50 Value Destroyed (280) 280 Prototype IDs (19) 380 Alien Tech Used (0) 0 Bonus (0) 0 TOTAL SCORE: 1110 Bonus ------- None Cogmind --------- Core Integrity 0/250 Matter 174/300 Energy 239/240 System Corruption 9% Temperature Cool (0) Movement Core (300) Ox5 Location -10/Subcaves Parts ------- > --- POWER (1) -------- Nuclear Core (fused) > --- PROPULSION (2) --- (None) > --- UTILITY (2) ------ Small Storage Unit Self-contained Transmogrifier > --- WEAPON (2) ------- Advanced Beam Cannon (fused) CPS Tube (fused) > --- INVENTORY (8) ---- Improved Heat Sink Tower Shield Cobbler Unit Small Laser Small Laser Peak State ------------ > --- POWER ------------ Enhanced Nuclear Core > --- PROPULSION ------- (None) > --- UTILITY ---------- Small Storage Unit Self-contained Transmogrifier > --- WEAPON ----------- Advanced Beam Cannon Improved Assault Rifle > --- INVENTORY -------- Improved Heat Sink Tower Shield Cobbler Unit Small Laser Small Laser [Rating: 23] Favorites ----------- Power Light Ion Engine Engine Light Ion Engine Power Core Enhanced Nuclear Core Propulsion Compact Wheel Wheel Compact Wheel Utility Small Storage Unit Device Self-contained Transmogrifier Storage Small Storage Unit Protection Scrap Shield Weapon EM Pulse Gun Energy Gun EM Pulse Gun Energy Cannon Beam Cannon Ballistic Gun Autogun Special Weapon CPS Tube Build | -11 -10 -10 ------- Run | Yrd Mat Sub Slots Evolved . | . . . Power . | . . . Propulsion . | . . . Utility . | . . . Weapon . | . . . Parts Attached 18 | 8 3 7 Power 2 | 2 . . Engine 2 | 2 . . Core . | . . . Reactor . | . . . Propulsion 2 | 2 . . Treads . | . . . Leg . | . . . Wheel 2 | 2 . . Hover . | . . . Flight . | . . . Utility 3 | 1 . 2 Device 1 | . . 1 Storage 1 | 1 . . Processor . | . . . Hackware . | . . . Protection 1 | . . 1 Artifact . | . . . Weapon 11 | 3 3 5 Energy Gun 6 | 3 3 . Energy Cannon 2 | . . 2 Ballistic Gun 3 | . . 3 Ballistic Cannon . | . . . Launcher . | . . . Special Weapon . | . . . Impact Weapon . | . . . Slashing Weapon . | . . . Piercing Weapon . | . . . Special Melee Weapon . | . . . Unidentified Prototypes 1 | . . 1 Corrupted Parts 1 | . . 1 System Corruption 9 | . . 9 Parts Lost 7 | . . 7 Power 1 | . . 1 Propulsion 2 | . . 2 Utility 1 | . . 1 Weapon 3 | . . 3 Highest Loss Streak 4 | . . 4 To Critical Strikes . | . . . Average Backups 5 | 1 5 5 Power . | . 1 . Propulsion . | . . . Utility 2 | . . 2 Weapon 2 | . 3 2 Tool/Special . | . . . Unused Backups 3 | . . 3 Power . | . . . Propulsion . | . . . Utility 3 | . . 3 Weapon . | . . . Tool/Special . | . . . Average Slot Usage (%) 72 | . 85 69 Engine 11 | . 14 10 Core 2 | . . 2 Wheel 5 | . 28 1 Device 10 | . . 12 Storage 13 | . 14 13 Energy Gun 7 | . 28 4 Energy Cannon 7 | . . 8 Ballistic Gun 11 | . . 13 Special Weapon 1 | . . 1 Peak Build Rating 23 | 6 6 23 Average Rating 14 | 3 6 16 On Entrance 4 | . 6 6 Avg Prop Armor Cover (%) . | . . . Naked Turns . | . . . Heaviest Build 25 | 13 14 25 Greatest Support 26 | 26 26 26 Greatest Overweight (x) 6 | 1 . 6 Average Overweight (x) 2 | . . 3 Largest Inventory Capacity 8 | 8 8 8 Average Capacity 7 | 6 8 7 Most Carried 8 | 2 7 8 Average Carried 6 | 1 5 6 Final Capacity 8 | 8 8 8 Final Carried 7 | 2 7 7 Transmogrified Parts 16 | . . 16 Integrity Recovered 121 | . . 121 Class Distribution -------------------- 100% | Mutant Dominant Class ---------------- Mutant | -10/Materials Mutant | -10/Subcaves Resources | -11 -10 -10 ----------- Run | Yrd Mat Sub Matter Collected 567 | 208 60 299 Remotely . | . . . Salvage Created 426 | . 171 255 Parts 24 | . 7 17 Haulers Intercepted . | . . . Recyclers Shooed . | . . . Parts Field Recycled . | . . . Retrieved Matter . | . . . Parts Self-Destructed 15 | . . 15 Prevented . | . . . Parts Restored . | . . . Kills | -11 -10 -10 ------- Run | Yrd Mat Sub Combat Hostiles Destroyed 10 | . 3 7 Guns 6 | . 2 4 Cannons 3 | . . 3 AOE 1 | . 1 . Classes Destroyed 5 | . 1 4 Swarmer 4 | . . 4 Grunt 3 | . 3 . Sentry 1 | . . 1 Cobbler 1 | . . 1 Subdweller 2 | . . 2 Best Kill Streak 2 | . 2 2 Combat Bots Only 2 | . 2 2 Max Kills in Single Turn 1 | . 1 1 Gunslinging . | . . . Exploded 1 | . 1 . Melee . | . . . Uniques/NPCs Destroyed . | . . . Combat | -11 -10 -10 -------- Run | Yrd Mat Sub Hostile Shots Fired 59 | . 10 49 Missed 17 | . 3 14 Hits 42 | . 7 35 Projectile 42 | . 7 35 AOE 4 | . . 4 Critical Strikes 4 | . . 4 Damage Taken 928 | . 175 753 Core 251 | . 33 218 Absorbed by Shields . | . . . Core Remaining (%) 100 | 100 . . Volleys Fired 62 | . 9 53 Largest 2 | . 2 2 Hottest 140 | . 80 140 Shots Fired 122 | . 18 104 Gun 85 | . 18 67 Cannon 35 | . . 35 Launcher . | . . . Special 2 | . . 2 Kinetic 43 | . . 43 Thermal 49 | . . 49 Explosive . | . . . Electromagnetic 28 | . 18 10 Robot Hit Streak 8 | . 6 8 Robot Miss Streak 2 | . 1 2 Penetration Max . | . . . Secondary Targets . | . . . Shots Hit Robots 60 | . 15 45 Core Hits 20 | . 6 14 Critical Kills . | . . . Critical Parts Destroyed 1 | . . 1 Critical Strikes 2 | . . 2 Destroy 2 | . . 2 Melee Attacks . | . . . Impact . | . . . Slashing . | . . . Piercing . | . . . Sneak Attacks . | . . . Combat Hostiles . | . . . Follow-up Attacks . | . . . Damage Inflicted 881 | . 224 657 Guns 640 | . 192 448 Cannons 209 | . . 209 Explosions 32 | . 32 . Melee . | . . . Ramming . | . . . Kinetic 265 | . . 265 Thermal 326 | . 32 294 Explosive . | . . . Electromagnetic 290 | . 192 98 Impact . | . . . Slashing . | . . . Piercing . | . . . Highest Corruption 9 | . . 9 Average Corruption 9 | . . 9 Corruption Purged . | . . . Corruption Blocked . | . . . Effects 86 | . . 86 Message Errors 23 | . . 23 Matter Fused 18 | . . 18 Heat Flow Errors 10 | . . 10 Energy Discharges 9 | . . 9 Data Loss (minor) 15 | . . 15 Data Loss (major) 4 | . . 4 Misfires 4 | . . 4 Alerts 2 | . . 2 Weapon Failures 1 | . . 1 Overload Shots . | . . . Overflow Damage . | . . . Projectiles . | . . . Explosions . | . . . Melee . | . . . Knockbacks . | . . . Impact . | . . . Kinetic . | . . . Secondary . | . . . Self-Inflicted Damage 39 | . 39 . Shots 1 | . 1 . Rammed . | . . . Targets Rammed . | . . . Kicked . | . . . Crushed . | . . . Highest Temperature 222 | . 153 222 Average Temperature 67 | . 74 62 Received Heat Transfer 159 | . 60 99 Siege Activations . | . . . Martial Activations . | . . . Shielding Activations . | . . . Robots Disrupted . | . . . Combat Hostiles . | . . . Robots Corrupted . | . . . Combat Hostiles . | . . . Parts Fried 2 | . 2 . Impact Corruptions . | . . . Robots Melted . | . . . Combat Hostiles . | . . . Parts Melted . | . . . Heat Transferred 694 | . 50 644 Parts Sabotaged . | . . . Parts Stolen . | . . . Parts Stripped . | . . . Power Chain Reactions 1 | . 1 . Alert | -11 -10 -10 ------- Run | Yrd Mat Sub Maximum Alert Level . | . . . Low Security (%) 100 | 100 100 . Level 1 . | . . . Level 2 . | . . . Level 3 . | . . . Level 4 . | . . . Level 5 . | . . . High Security . | . . . Max Security . | . . . Peak Influence 56 | . 56 . Initial . | . . . Average 12 | . 13 . Influence Increases 246 | . 136 110 Destroy 0b10 Robot/C 160 | . 60 100 Destroy Leader 20 | . 10 10 Destroy Structure 6 | . 6 . Lose Combat Pursuer 60 | . 60 . Influence Decreases 246 | . 122 124 Entered New Map 7 | . . 7 Time Decay 239 | . 122 117 Squads Dispatched . | . . . Investigation . | . . . Extermination . | . . . Reinforcement . | . . . Assault . | . . . Garrison . | . . . Intercept . | . . . Searches Triggered . | . . . Construction Impeded . | . . . Haulers Reinforced . | . . . Active Scanning Responses . | . . . Cargo Convoy Interrupts . | . . . Stealth | -11 -10 -10 --------- Run | Yrd Mat Sub Distress Signals . | . . . Communications Jammed . | . . . Distress Signals . | . . . Times Spotted 17 | . 9 8 Peak Tracking Total 3 | . 3 2 Tactical Retreats 2 | . 2 . Traps | -11 -10 -10 ------- Run | Yrd Mat Sub Traps Triggered 3 | . 1 2 Indirectly . | . . . Trap Hack Attempts . | . . . Triggered . | . . . Disarmed . | . . . Reprogrammed . | . . . Reused . | . . . Traps Extracted . | . . . Installed . | . . . Triggered . | . . . Machines | -11 -10 -10 ---------- Run | Yrd Mat Sub Machines Disabled 1 | . . 1 Max in Single Turn 1 | . . 1 Machines Repaired . | . . . Machines Dismantled . | . . . Machines Sabotaged . | . . . Overloaded Fab Kills . | . . . Hacking | -11 -10 -10 --------- Run | Yrd Mat Sub Machines Accessed 1 | . . 1 Terminals . | . . . Fabricators . | . . . Repair Stations . | . . . Recycling Units . | . . . Scanalyzers . | . . . Garrison Access . | . . . Total Hacks 1 | . . 1 Successful 1 | . . 1 Failed . | . . . Catastrophic . | . . . Database Lockouts . | . . . Manual . | . . . Terminals . | . . . Fabricators . | . . . Repair Stations . | . . . Recycling Units . | . . . Scanalyzers . | . . . Garrison Access . | . . . Terminal Hacks 1 | . . 1 Proto ID Catalog 1 | . . 1 Fabricator Hacks . | . . . Repair Station Hacks . | . . . Recycling Unit Hacks . | . . . Scanalyzer . | . . . Garrison Access Hacks . | . . . Unauthorized Hacks . | . . . Terminals . | . . . Fabricators . | . . . Repair Stations . | . . . Recycling Units . | . . . Scanalyzers . | . . . Garrison Access . | . . . Data Cores Recovered . | . . . Used . | . . . Hacking Detections . | . . . Full Trace Events . | . . . Feedback Events . | . . . Feedback Blocked . | . . . Robot Schematics Acquired . | . . . Robots Built . | . . . Authchips . | . . . Time . | . . . Total Robot Build Rating . | . . . Part Schematics Acquired . | . . . Parts Built . | . . . Authchips . | . . . Time . | . . . Total Part Build Rating . | . . . Part Studies Acquired . | . . . Parts Repaired . | . . . Time . | . . . Parts Recycled . | . . . Recycled Matter . | . . . Retrieved Matter . | . . . Retrieved Components . | . . . Parts Scanalyzed . | . . . Part Schematics Acquired . | . . . Parts Damaged . | . . . Bothacking | -11 -10 -10 ------------ Run | Yrd Mat Sub Used RIF Installer . | . . . Robots Hacked . | . . . Non-combat . | . . . Combat . | . . . Robot Hacks Applied . | . . . Relay Couplers Released . | . . . Fabnet Peak Effective % . | . . . Robots Rewired . | . . . Allies Hacked . | . . . Hacks Repelled . | . . . Allies | -11 -10 -10 -------- Run | Yrd Mat Sub Total Allies . | . . . Largest Group . | . . . Highest-Rated Group . | . . . Highest-Rated Ally . | . . . Total Orders . | . . . Ally Attacks . | . . . Total Damage . | . . . Kills . | . . . Allies Corrupted . | . . . Allies Melted . | . . . Intel | -11 -10 -10 ------- Run | Yrd Mat Sub Active Infowar (turns) . | . . . Robot Analysis Total . | . . . Derelict Logs Recovered . | . . . Drone Launches . | . . . Drone Recoveries . | . . . Exploration | -11 -10 -10 ------------- Run | Yrd Mat Sub Turns Passed 3260 | 56 426 2778 Spaces Moved 1343 | 50 336 957 Core 803 | 23 . 780 Treads . | . . . Legs . | . . . Wheels 540 | 27 336 177 Hover . | . . . Flight . | . . . Fastest Speed 50 | 50 90 90 Average Speed 188 | 85 90 228 Slowest Speed 350 | 100 90 350 Overloaded Moves . | . . . Propulsion Burnouts . | . . . Robots Hopped . | . . . Potential Cave-ins . | . . . Cave-ins Triggered . | . . . Exploration Rate (%) 32 | 3 53 42 Regions Visited 2 Branch Regions 1 Pre-discovered Areas . | . . . Known Exits Taken . | . . . Unknown Exits Taken 2 | 1 1 . Scrap Searched . | . . . Spaces Dug . | . . . Terrain Destroyed 5 | . 5 . Melee . | . . . Projectile . | . . . AOE 5 | . 5 . Terrain Rammed . | . . . Walls Destroyed . | . . . Machines Disabled . | . . . Actions | -11 -10 -10 --------- Run | Yrd Mat Sub Total 1945 | 59 439 1447 Wait 500 | 1 87 412 Move 1341 | 49 335 957 Hop . | . . . Pick Up 13 | 1 4 8 Fast Attach 10 | 6 . 4 Attach 4 | . . 4 Detach . | . . . Swap 11 | 2 4 5 Drop 4 | . . 4 Fire 62 | . 9 53 Melee . | . . . Ram . | . . . Kick . | . . . Crush . | . . . Escape Stasis . | . . . Rewire . | . . . Trap . | . . . Miscellaneous . | . . . Route ------- -11/Scrapyard -10/Materials (discovered 4 exits: [*Mat x2] / [*Min] / *Sub) -10/Subcaves History --------- Turn | Location | Event 37 | -11/Scrapyard | Discovered new exit (range 15) 57 | -11/Scrapyard | Entered Materials 179 | -10/Materials | Discovered new exit (range 14) 298 | -10/Materials | Discovered new exit (range 12) 309 | -10/Materials | Build established: Mutant 402 | -10/Materials | Discovered new exit (range 13) 477 | -10/Materials | Discovered new exit (range 4) 483 | -10/Materials | Entered Subcaves 518 | -10/Subcaves | A swath of the cavern ceiling suddenly collapsed 594 | -10/Subcaves | Ambushed by Subdweller buried in earth 609 | -10/Subcaves | Core integrity fell below 50% 643 | -10/Subcaves | Lost 4 parts (1p1n1u1w) 742 | -10/Subcaves | Lost 3 parts (1n2w) 821 | -10/Subcaves | Visited 4L-MR0's lab 848 | -10/Subcaves | Found Prototype Device 848 | -10/Subcaves | Identified Sfc. Transmogrifier 859 | -10/Subcaves | Found Tower Shield 953 | -10/Subcaves | Attached CPS modules to J2-ULC(O) 1023 | -10/Subcaves | Attached CPS modules to J2-ULC(O) 1775 | -10/Subcaves | Shifting Twisted Machinery released Sub. Machine Gun 1781 | -10/Subcaves | Shifting Twisted Machinery released Battle Rifle 1829 | -10/Subcaves | Core integrity fell below 20% 3261 | -10/Subcaves | Destroyed by Piercing Trap Last Messages --------------- 02952_ OLQV|>U 7&,G,PQTPDTPP 02983_ Sfc. Transmogrifier converts Imp. Assault Rifle into Adv. Beam Cannon. 03029_ System corrupted: IFF burst signal emitted. 03049_ System corrupted: Substantial component data lost. 03065_ System corrupted: Matter fused (-7). 03081_ System corrupted: Substantial component data lost. 03096_ System corrupted: Matter fused (-5). 03113_ System corrupted: Heat flow error (+120). 03129_ System corrupted: Matter fused (-9). 03160_ :NP5XMFSSM9U:,U2TXDFI1AZSXKV 03180_ Sfc. Transmogrifier converts Enh. Nuclear Core into Nuclear Core. 03183_ Sfc. Transmogrifier converts Adv. Beam Cannon into CPS Tube. 03192_ System corrupted: Component data lost. 03217_ System corrupted: Substantial component data lost. 03261_ Triggered Piercing Trap. 03261_ Spikes shoot up from the floor. 03261_ Critical hit (Impale). Map ----- +----------------------------------------------------+ | ????# ##??????????????????????????????##" | | ##???# ##????????????????????????????????## | | #???## #?????????????????????????????????### | | #???# #?????????????????????????????????# # | | ######## ##????????????????????????????????## | | #??# #????????????????????????????????# | | ### #?????????????????????????????#### | | ##?????????????????????????????# ## | | ## #??????????????????????????????# | | ### ##?????????????????????????????# | | ## #### ######????????????????????????# # | | ## ### #????????????????????????## ## | | #?????????????????????????# # | | #?????????????????????????## | | ## #??????????????????????????## | | ### #???????????????????????????# | | ??## ## #???????????????????????????# | | ???## ##? % ##???????????????????????????### | | ????## ##?? #??????????????????????????????? | | ?????## ##??? #???????????????????????????#### | | ??????###??? %#??????????????????????????# | | ???????????# #????????????????????####?## | | ??????????? % ####???????????????## ### | | ??????????# # ################ | | ????????????# % # # ##""" | | ##??????????# @^ " " ### | | ???????# #u "" ### ###?? | | ##????????? ## ^ ## [ # & #?? | | #???????????? ?? ?## ###### """"& #?? | | ###??????????????????## ######## ###"" # #?? | | #????????????????????## #### "## ######### #? | | ##???????????????????# ## #????? | | ###?????????####????# "## ##????? | | ## #????????## ##???# """" ##?????? ### | | #????##### #???##"""" #####???????###?? | | ###### #???# #""" ##???????????????? | | ## ##??#""""" #????????????????? | | ## ##?#" ## #????????????????? | | #### ### ### #???????????????? | | ### #??## " " #?## #??????????????? | | ####?##### #???##"" "" #??### #?????????????? | | ?????????## ##????####""####?????###?????????????? | | ??????????###????????####????????????????????????? | | ?????????????????????????????????????????????????? | | ?????????????????????????????????????????????????? | | ?????????????????????????????????????????????????? | | ?????????????????????????????????????????????????? | | ?????????????????????????????????????????????????? | | ?????????????????????????????????????????????????? | | ?????????????????????????????????????????????????? | +----------------------------------------------------+ Best States ------------- Heat Dissipation 25 Energy Generation 17 Energy Capacity 300 Matter Stores 300 Matter Capacity 300 Sight Range 16 Terrain Scan Density 10 Armor Coverage 800 Evasion (%) 42 Item Schematics ----------------- None Robot Schematics ------------------ None Fabricated ------------ Nothing Repaired ---------- Nothing Studied --------- None Alien Tech Used ----------------- None Achievements -------------- None Challenges ------------ None Game ------ Seed BlinkLinearTurretformer Manual? 0 Play Time 00:14:25 Cumulative 211.3 hours Start 2026.06.25 @ 21:38:40 End 2026.06.25 @ 21:53:05 Sessions 1 Manual Loads 0 Difficulty Rogue Special Mode None Game No. 354 Rogue 354 Adventurer 0 Explorer 0 Win Type - Total 2 Types 2/0/0/0/0/0/0/0/0/0 Lore% 62 Gallery% 60 Achievement% 47 Wizard Run 0 Options --------- Layout 2 ASCII 0 Keyboard 1 Movement Numpad Keybinds 0 Fullscreen 1 Font 20/SmallcapsGlow Map View 64x51 Zoom Use 0% Tactical HUD 1 Map Filters NONE Filters NONE Steam 1 RUN: b72f5bb7-6ce5-4641-ac00-1fc61e51a2ea